lending/lending_fUSD_20240112
["ID","MTS","AMOUNT","RATE_DAILY","PERIOD"]
[311360761,1705067515724,-500.0,0.00025326,2]
[311360762,1705067515734,-500.0,0.00025326,2]
[311360763,1705067515743,-500.0,0.00025326,2]
[311360764,1705067515752,-500.0,0.00025326,2]
[311360765,1705067515762,-500.0,0.00025326,2]
[311360766,1705067515771,-500.0,0.00025326,2]
[311360767,1705067515780,-500.0,0.00025326,2]
[311360768,1705067515790,-500.0,0.00025326,2]
[311360769,1705067515799,-988.76,0.00025326,2]
[311360770,1705067515810,-500.0,0.00025326,2]
[311360771,1705067515819,-500.0,0.00025326,2]
[311360772,1705067515829,-536.8,0.00025326,2]
[311360773,1705067515838,-500.0,0.00025326,2]
[311360774,1705067515847,-676.74,0.00025326,2]
[311360775,1705067515857,-594.36,0.00025326,2]
[311360776,1705067515867,-500.0,0.00025326,2]
[311360777,1705067515876,-500.0,0.00025326,2]
[311360778,1705067515886,-500.0,0.00025326,2]
[311360779,1705067515895,-572.67,0.00025326,2]
[311360780,1705067515906,-500.0,0.00025326,2]
[311360781,1705067515916,-500.0,0.00025326,2]
[311360782,1705067515925,-543.4,0.00025326,2]
[311360783,1705067515935,-500.0,0.00025326,2]
[311360784,1705067515944,-500.0,0.00025326,2]
[311360785,1705067515954,-686.86,0.00025326,2]
[311360786,1705067515963,-500.0,0.00025326,2]
[311360787,1705067515972,-513.03,0.00025326,2]
[311360788,1705067515982,-500.0,0.00025326,2]
[311360789,1705067515991,-717.1,0.00025326,2]
[311360790,1705067516001,-500.0,0.00025326,2]
[311360791,1705067516011,-915.79,0.00025326,2]
[311360792,1705067516020,-631.08,0.00025326,2]
[311360793,1705067516030,-628.12,0.00025326,2]
[311360794,1705067516039,-500.0,0.00025326,2]
[311360795,1705067516049,-578.39,0.00025326,2]
[311360796,1705067516059,-865.61,0.00025326,2]
[311360797,1705067516069,-500.0,0.00025326,2]
[311360798,1705067516078,-504.98,0.00025326,2]
[311360799,1705067516087,-785.43,0.00025326,2]
[311360800,1705067516097,-500.0,0.00025326,2]
[311360801,1705067516106,-500.0,0.00025326,2]
[311360802,1705067516115,-500.0,0.00025326,2]
[311360803,1705067516125,-500.0,0.00025326,2]
[311360804,1705067516134,-802.88,0.00025326,2]
[311360805,1705067516143,-592.6,0.00025326,2]
[311360806,1705067516153,-498.88,0.00025326,2]
[311360807,1705067516163,-1046.21,0.00025326,2]
[311360808,1705067516177,-1019.63,0.00025326,2]
[311360809,1705067516186,-501.58,0.00025326,2]
[311360810,1705067516196,-188.64,0.00025326,2]
[311360811,1705067516206,-500.0,0.00025326,2]
[311360812,1705067516216,-1762.58,0.00025326,2]
[311360813,1705067516226,-500.0,0.00025326,2]
[311360814,1705067516235,-742.28,0.00025326,2]
[311360815,1705067516245,-500.0,0.00025326,2]
[311360816,1705067516264,-500.0,0.00025326,2]
[311360817,1705067516286,-551.57,0.00025326,2]
[311360818,1705067516305,-544.63,0.00025326,2]
[311360819,1705067516325,-500.0,0.00025326,2]
[311360820,1705067516344,-500.0,0.00025326,2]
[311360821,1705067516363,-648.62,0.00025326,2]
[311360822,1705067516383,-511.99,0.00025326,2]
[311360823,1705067516401,-500.0,0.00025326,2]
[311360824,1705067516420,-500.0,0.00025326,2]
[311360825,1705067516438,-500.0,0.00025326,2]
[311360826,1705067516460,-513.65,0.00025326,2]
[311360827,1705067516478,-500.0,0.00025326,2]
[311360828,1705067516493,-500.0,0.00025326,2]
[311360829,1705067516511,-500.0,0.00025326,2]
[311360830,1705067516526,-500.0,0.00025326,2]
[311360831,1705067516544,-522.55,0.00025326,2]
[311360832,1705067516561,-683.51,0.00025326,2]
[311360833,1705067516578,-500.0,0.00025326,2]
[311360834,1705067516596,-924.0,0.00025326,2]
[311360835,1705067516612,-500.0,0.00025326,2]
[311360836,1705067516629,-500.0,0.00025326,2]
[311360837,1705067516645,-677.56,0.00025326,2]
[311360838,1705067516661,-500.0,0.00025326,2]
[311360839,1705067516677,-500.0,0.00025326,2]
[311360840,1705067516692,-500.0,0.00025326,2]
[311360841,1705067516707,-500.0,0.00025326,2]
[311360842,1705067516722,-612.68,0.00025326,2]
[311360843,1705067516738,-500.0,0.00025326,2]
[311360844,1705067516754,-590.15,0.00025326,2]
[311360845,1705067516770,-505.02,0.00025326,2]
[311360846,1705067516785,-500.0,0.00025326,2]
[311360847,1705067516801,-548.99,0.00025326,2]
[311360848,1705067516816,-500.0,0.00025326,2]
[311360849,1705067516831,-543.6,0.00025326,2]
[311360850,1705067516847,-632.89,0.00025326,2]
[311360851,1705067516863,-500.0,0.00025326,2]
[311360852,1705067516877,-1092.03,0.00025326,2]
[311360853,1705067516893,-710.83,0.00025326,2]
[311360854,1705067516908,-545.64,0.00025326,2]
[311360855,1705067516923,-533.57,0.00025326,2]
[311360856,1705067516939,-500.0,0.00025326,2]
[311360857,1705067516954,-612.48,0.00025326,2]
[311360858,1705067516969,-547.06,0.00025326,2]
[311360859,1705067516985,-1007.67,0.00025326,2]
[311360860,1705067516999,-1191.64,0.00025326,2]
[311360861,1705067517015,-500.0,0.00025326,2]
[311360862,1705067517031,-653.87,0.00025326,2]
[311360863,1705067517047,-500.0,0.00025326,2]
[311360864,1705067517064,-567.05,0.00025326,2]
[311360865,1705067517080,-616.57,0.00025326,2]
[311360866,1705067517096,-920.08,0.00025326,2]
[311360867,1705067517111,-336.0,0.00025326,2]
[311360868,1705067517126,-500.0,0.00025326,2]
[311360869,1705067517141,-500.0,0.00025326,2]
[311360870,1705067517158,-792.43,0.00025326,2]
[311360871,1705067517174,-717.68,0.00025326,2]
[311360872,1705067517194,-615.74,0.00025326,2]
[311360873,1705067517210,-549.71,0.00025326,2]
[311360874,1705067517226,-500.0,0.00025326,2]
[311360875,1705067517241,-533.96,0.00025326,2]
[311360876,1705067517256,-545.26,0.00025326,2]
[311360877,1705067517272,-479.04,0.00025326,2]
[311360878,1705067517286,-500.0,0.00025326,2]
[311360879,1705067517301,-526.4,0.00025326,2]
[311360880,1705067517318,-753.76,0.00025326,2]
[311360881,1705067517334,-500.0,0.00025326,2]
[311360882,1705067517349,-500.0,0.00025326,2]
[311360883,1705067517365,-568.06,0.00025326,2]
[311360884,1705067517379,-500.0,0.00025326,2]
[311360885,1705067517395,-500.0,0.00025326,2]
[311360886,1705067517413,-806.29,0.00025326,2]
[311360887,1705067517429,-500.0,0.00025326,2]
[311360888,1705067517445,-500.0,0.00025326,2]
[311360889,1705067517462,-500.0,0.00025326,2]
[311360890,1705067517477,-500.0,0.00025326,2]
[311360891,1705067517492,-222.21,0.00025326,2]
[311360892,1705067517509,-848.08,0.00025326,2]
[311360893,1705067517524,-977.29,0.00025326,2]
[311360894,1705067517538,-166.214123,0.00025326,2]
[311360895,1705067517556,-500.0,0.00025326,2]
[311360896,1705067517573,-500.0,0.00025326,2]
[311360897,1705067517589,-516.56,0.00025326,2]
[311360898,1705067517605,-500.0,0.00025326,2]
[311360899,1705067517620,-420.48,0.00025326,2]
[311360900,1705067517636,-764.31,0.00025326,2]
[311360901,1705067517653,-555.48,0.00025326,2]
[311360902,1705067517668,-675.05,0.00025326,2]
[311360903,1705067517683,-500.0,0.00025326,2]
[311360904,1705067517698,-500.0,0.00025326,2]
[311360905,1705067517713,-500.0,0.00025326,2]
[311360906,1705067517727,-696.67,0.00025326,2]
[311360907,1705067517742,-549.27,0.00025326,2]
[311360908,1705067517757,-537.5,0.00025326,2]
[311360909,1705067517772,-794.27,0.00025326,2]
[311360910,1705067517794,-1478.94,0.00025326,2]
[311360911,1705067517811,-2259.65,0.00025326,2]
[311360912,1705067517826,-592.72,0.00025326,2]
[311360913,1705067517841,-500.0,0.00025326,2]
[311360914,1705067517857,-500.0,0.00025326,2]
[311360915,1705067517873,-508.59,0.00025326,2]
[311360916,1705067517890,-361.09,0.00025326,2]
[311360917,1705067517905,-1082.32,0.00025326,2]
[311360918,1705067517920,-5818.98,0.00025326,2]
[311360919,1705067517936,-613.36,0.00025326,2]
[311360920,1705067517952,-500.0,0.00025326,2]
[311360921,1705067517967,-500.0,0.00025326,2]
[311360922,1705067517983,-500.0,0.00025326,2]
[311360923,1705067517998,-500.0,0.00025326,2]
[311360924,1705067518012,-560.75,0.00025326,2]
[311360925,1705067518028,-501.17,0.00025326,2]
[311360926,1705067518043,-500.0,0.00025326,2]
[311360927,1705067518058,-941.07,0.00025326,2]
[311360928,1705067518073,-568.7,0.00025326,2]
[311360929,1705067518088,-500.0,0.00025326,2]
[311360930,1705067518103,-610.82,0.00025326,2]
[311360931,1705067518119,-500.0,0.00025326,2]
[311360932,1705067518134,-2025.81,0.00025326,2]
[311360933,1705067518149,-627.28,0.00025326,2]
[311360934,1705067518165,-793.23,0.00025326,2]
[311360935,1705067518182,-209.94095367,0.00025326,2]
[311360936,1705067518198,-500.0,0.00025326,2]
[311360937,1705067518217,-500.0,0.00025326,2]
[311360938,1705067518234,-500.0,0.00025326,2]
[311360939,1705067518250,-500.0,0.00025326,2]
[311360940,1705067518267,-631.35,0.00025326,2]
[311360941,1705067518283,-1268.72,0.00025326,2]
[311360942,1705067518298,-500.0,0.00025326,2]
[311360943,1705067518318,-3058.91,0.00025326,2]
[311360944,1705067518337,-500.0,0.00025326,2]
[311360945,1705067518357,-645.36,0.00025326,2]
[311360946,1705067518370,-500.0,0.00025326,2]
[311360947,1705067518686,-594.49,0.00025326,2]
[311360948,1705067518718,-500.0,0.00025326,2]
[311360949,1705067518727,-500.0,0.00025326,2]
[311360950,1705067518738,-523.76,0.00025326,2]
[311360951,1705067518747,-967.54,0.00025326,2]
[311360952,1705067518757,-500.0,0.00025326,2]
[311360953,1705067518767,-698.09,0.00025326,2]
[311360954,1705067518777,-1774.52,0.00025326,2]
[311360955,1705067518787,-500.0,0.00025326,2]
[311360956,1705067518797,-500.0,0.00025326,2]
[311360957,1705067518807,-672.72,0.00025326,2]
[311360958,1705067518821,-1366.67,0.00025326,2]
[311360959,1705067518830,-640.24,0.00025326,2]
[311360960,1705067518840,-650.29,0.00025326,2]
[311360961,1705067518850,-1109.5,0.00025326,2]
[311360962,1705067518859,-653.12,0.00025326,2]
[311360963,1705067518869,-500.0,0.00025326,2]
[311360964,1705067518878,-2402.79,0.00025326,2]
[311360965,1705067518887,-500.0,0.00025326,2]
[311360966,1705067518897,-682.08,0.00025326,2]
[311360967,1705067518906,-500.0,0.00025326,2]
[311360968,1705067518915,-2173.55,0.00025326,2]
[311360969,1705067518925,-604.31,0.00025326,2]
[311360970,1705067518934,-458.93,0.00025326,2]
[311360971,1705067518944,-1581.39,0.00025326,2]
[311360972,1705067518954,-500.0,0.00025326,2]
[311360973,1705067518964,-388.15366265,0.00025326,2]
[311360974,1705067518974,-1124.99,0.00025326,2]
[311360975,1705067518983,-500.0,0.00025326,2]
[311360976,1705067518992,-500.0,0.00025326,2]
[311360977,1705067519002,-619.21,0.00025326,2]
[311360978,1705067519012,-500.0,0.00025326,2]
[311360979,1705067519021,-1172.6,0.00025326,2]
[311360980,1705067519031,-843.5,0.00025326,2]
[311360981,1705067519040,-771.85,0.00025326,2]
[311360982,1705067519049,-500.0,0.00025326,2]
[311360983,1705067519059,-752.62,0.00025326,2]
[311360984,1705067519071,-500.0,0.00025326,2]
[311360985,1705067519080,-613.44,0.00025326,2]
[311360986,1705067519090,-1338.76,0.00025326,2]
[311360987,1705067519099,-570.42,0.00025326,2]
[311360988,1705067519109,-506.47,0.00025326,2]
[311360989,1705067519119,-2558.46,0.00025326,2]
[311360990,1705067519128,-500.0,0.00025326,2]
[311360991,1705067519138,-778.89,0.00025326,2]
[311360992,1705067519147,-500.0,0.00025326,2]
[311360993,1705067519156,-608.12,0.00025326,2]
[311360994,1705067519166,-761.66,0.00025326,2]
[311360995,1705067519180,-500.0,0.00025326,2]
[311360996,1705067519190,-500.0,0.00025326,2]
[311360997,1705067519200,-606.09,0.00025326,2]
[311360998,1705067519209,-2321.31,0.00025326,2]
[311360999,1705067519220,-503.85,0.00025326,2]
[311361000,1705067519230,-792.73,0.00025326,2]
[311361001,1705067519240,-505.57,0.00025326,2]
[311361002,1705067519250,-500.0,0.00025326,2]
[311361003,1705067519261,-500.0,0.00025326,2]
[311361004,1705067519270,-1855.62,0.00025326,2]
[311361005,1705067519279,-986.73,0.00025326,2]
[311361006,1705067519289,-301.08,0.00025326,2]
[311361007,1705067519298,-500.0,0.00025326,2]
[311361008,1705067519307,-544.3,0.00025326,2]
[311361009,1705067519318,-500.0,0.00025326,2]
[311361010,1705067519328,-922.23,0.00025326,2]
[311361011,1705067519338,-855.09,0.00025326,2]
[311361012,1705067519348,-1739.46,0.00025326,2]
[311361013,1705067519357,-539.44,0.00025326,2]
[311361014,1705067519367,-500.0,0.00025326,2]
[311361015,1705067519377,-628.22,0.00025326,2]
[311361016,1705067519387,-564.76,0.00025326,2]
[311361017,1705067519397,-500.0,0.00025326,2]
[311361018,1705067519407,-500.0,0.00025326,2]
[311361019,1705067519417,-500.0,0.00025326,2]
[311361020,1705067519427,-5795.35,0.00025326,2]
[311361021,1705067519436,-500.0,0.00025326,2]
[311361022,1705067519446,-500.0,0.00025326,2]
[311361023,1705067519456,-500.0,0.00025326,2]
[311361024,1705067519466,-518.54,0.00025326,2]
[311361025,1705067519476,-577.35,0.00025326,2]
[311361026,1705067519486,-500.0,0.00025327,2]
[311361027,1705067519496,-506.82,0.00025327,2]
[311361028,1705067519505,-898.46,0.00025327,2]
[311361029,1705067519515,-689.65,0.00025327,2]
[311361030,1705067519524,-689.5,0.00025327,2]
[311361031,1705067519534,-544.38,0.00025327,2]
[311361032,1705067519544,-517.93,0.00025327,2]
[311361033,1705067519554,-500.0,0.00025327,2]
[311361034,1705067519564,-603.88,0.00025327,2]
[311361035,1705067519574,-500.0,0.00025327,2]
[311361036,1705067519584,-807.14,0.00025327,2]
[311361037,1705067519594,-500.0,0.00025327,2]
[311361038,1705067519606,-763.57,0.00025327,2]
[311361039,1705067519616,-500.0,0.00025327,2]
[311361040,1705067519626,-500.0,0.00025327,2]
[311361041,1705067519635,-881.83,0.00025327,2]
[311361042,1705067519645,-500.0,0.00025327,2]
[311361043,1705067519655,-547.66,0.00025327,2]
[311361044,1705067519664,-717.02,0.00025327,2]
[311361045,1705067519674,-500.0,0.00025327,2]
[311361046,1705067519683,-500.0,0.00025327,2]
[311361047,1705067519693,-588.39,0.00025327,2]
[311361048,1705067519702,-500.0,0.00025329,2]
[311361049,1705067519712,-500.0,0.00025329,2]
[311361050,1705067519721,-1000.0,0.00025348,2]
[311361051,1705067519730,-500.0,0.00025599,2]
[311361052,1705067519740,-500.0,0.00025599,2]
[311361053,1705067519749,-500.0,0.00025599,2]
[311361054,1705067519759,-500.0,0.00025599,2]
[311361055,1705067519768,-500.0,0.00025599,2]
[311361056,1705067519778,-500.0,0.00025599,2]
[311361057,1705067519788,-500.0,0.00025599,2]
[311361058,1705067519797,-500.0,0.00025599,2]
[311361059,1705067519807,-505.4,0.00025599,2]
[311361060,1705067519817,-1250.65,0.00025599,2]
[311361061,1705067519826,-500.0,0.00025599,2]
[311361062,1705067519836,-500.0,0.00025599,2]
[311361063,1705067519845,-7981.48,0.00025599,2]
[311361064,1705067519855,-535.31,0.00025599,2]
[311361065,1705067519864,-1261.36,0.00025599,2]
[311361066,1705067519874,-8984.16,0.00025599,2]
[311361067,1705067519884,-1671.94,0.00025599,2]
[311361068,1705067519893,-3195.18,0.00025599,2]
[311361069,1705067519902,-12299.66,0.00025599,2]
[311361070,1705067519912,-1110.57,0.00025599,2]
[311361071,1705067519922,-630.64,0.00025599,2]
[311361072,1705067519932,-3123.71,0.00025599,2]
[311361073,1705067519942,-500.0,0.00025599,2]
[311361074,1705067519951,-882.43,0.00025599,2]
[311361075,1705067519961,-2779.34,0.00025599,2]
[311361076,1705067519970,-500.0,0.00025599,2]
[311361077,1705067519979,-941.84,0.00025599,2]
[311361078,1705067519989,-703.36,0.00025599,2]
[311361079,1705067519999,-580.21,0.00025599,2]
[311361080,1705067520009,-22278.0,0.00025599,2]
[311361081,1705067520019,-2896.08,0.00025599,2]
[311361082,1705067520029,-1033.16,0.00025599,2]
[311361083,1705067520039,-2697.74,0.00025599,2]
[311361084,1705067520048,-500.0,0.00025599,2]
[311361085,1705067520059,-1239.07,0.00025599,2]
[311361086,1705067520070,-1299.72,0.00025599,2]
[311361087,1705067520080,-994.29,0.00025599,2]
[311361088,1705067520090,-162.68,0.00025599,2]
[311361089,1705067520100,-500.0,0.00025599,2]
[311361090,1705067520109,-508.66,0.00025599,2]
[311361091,1705067520118,-267.92,0.00025599,2]
[311361092,1705067520129,-500.0,0.00025599,2]
[311361093,1705067520139,-6520.81,0.00025599,2]
[311361094,1705067520148,-1237.49,0.00025599,2]
[311361095,1705067520158,-720.97,0.00025599,2]
[311361096,1705067520169,-4021.3,0.00025599,2]
[311361097,1705067520179,-500.0,0.00025599,2]
[311361098,1705067520191,-1358.89,0.00025599,2]
[311361099,1705067520201,-2605.83,0.00025599,2]
[311361100,1705067520212,-556.6,0.00025599,2]
[311361101,1705067520222,-500.0,0.00025599,2]
[311361102,1705067520232,-500.0,0.00025599,2]
[311361103,1705067520242,-1356.18,0.00025599,2]
[311361104,1705067520252,-519.89,0.00025599,2]
[311361105,1705067520263,-2784.68,0.00025599,2]
[311361106,1705067520273,-709.85,0.00025599,2]
[311361107,1705067520283,-500.0,0.00025599,2]
[311361108,1705067520294,-974.42,0.00025599,2]
[311361109,1705067520304,-2294.01,0.00025599,2]
[311361110,1705067520314,-227.12,0.00025599,2]
[311361111,1705067520324,-500.0,0.00025599,2]
[311361112,1705067520334,-529.88,0.00025599,2]
[311361113,1705067520344,-1586.88,0.00025599,2]
[311361114,1705067520355,-1607.34,0.00025599,2]
[311361115,1705067520365,-500.0,0.00025599,2]
[311361116,1705067520375,-892.72,0.00025599,2]
[311361117,1705067520385,-1286.7,0.00025599,2]
[311361118,1705067520395,-293.72,0.00025599,2]
[311361119,1705067520406,-214.52,0.00025599,2]
[311361120,1705067520416,-500.0,0.00025599,2]
[311361121,1705067520426,-563.27,0.00025599,2]
[311361122,1705067520436,-500.0,0.00025599,2]
[311361123,1705067520446,-593.72,0.00025599,2]
[311361124,1705067520456,-834.9,0.00025599,2]
[311361125,1705067520466,-1002.65,0.00025599,2]
[311361126,1705067520476,-500.0,0.00025599,2]
[311361127,1705067520486,-500.0,0.00025599,2]
[311361128,1705067520496,-13676.69,0.00025599,2]
[311361129,1705067520506,-1317.28,0.00025599,2]
[311361130,1705067520515,-500.0,0.00025599,2]
[311361131,1705067520525,-500.0,0.00025599,2]
[311361132,1705067520535,-771.85,0.00025599,2]
[311361133,1705067520544,-771.85,0.00025599,2]
[311361134,1705067520554,-771.85,0.00025599,2]
[311361135,1705067520565,-771.85,0.00025599,2]
[311361136,1705067520574,-772.05611661,0.00025599,2]
[311361137,1705067520586,-1642.76,0.00025599,2]
[311361138,1705067520596,-601.82,0.00025599,2]
[311361139,1705067520606,-500.0,0.00025599,2]
[311361140,1705067520616,-5698.97,0.00025599,2]
[311361141,1705067520626,-1051.05,0.00025599,2]
[311361142,1705067520636,-577.98,0.00025599,2]
[311361143,1705067520646,-852.82,0.00025599,2]
[311361144,1705067520655,-697.59,0.00025599,2]
[311361145,1705067520665,-1233.03,0.00025599,2]
[311361146,1705067520675,-327.44,0.00025599,2]
[311361147,1705067520685,-2538.76,0.00025599,2]
[311361148,1705067520695,-1405.14,0.00025599,2]
[311361149,1705067520706,-673.52,0.00025599,2]
[311361150,1705067520716,-2213.37,0.00025599,2]
[311361151,1705067520726,-500.0,0.00025599,2]
[311361152,1705067520735,-279.44,0.00025599,2]
[311361153,1705067520745,-500.0,0.00025599,2]
[311361154,1705067520755,-14904.63,0.00025599,2]
[311361155,1705067520765,-1129.13,0.00025599,2]
[311361156,1705067520775,-1026.68,0.00025599,2]
[311361157,1705067520785,-3836.53,0.00025599,2]
[311361158,1705067520795,-848.03,0.00025599,2]
[311361159,1705067520806,-717.68,0.00025599,2]
[311361160,1705067520817,-1579.12,0.00025599,2]
[311361161,1705067520828,-500.0,0.00025599,2]
[311361162,1705067520838,-359.36,0.00025599,2]
[311361163,1705067520847,-1016.89,0.00025599,2]
[311361164,1705067520856,-1273.06,0.00025599,2]
[311361165,1705067520866,-385.78634021,0.00025599,2]
[311361166,1705067520876,-1990.06,0.00025599,2]
[311361167,1705067520886,-642.71,0.00025599,2]
[311361168,1705067520895,-1962.61,0.00025599,2]
[311361169,1705067520905,-3858.89,0.00025599,2]
[311361170,1705067520915,-1731.39,0.00025599,2]
[311361171,1705067520925,-830.92,0.00025599,2]
[311361172,1705067520935,-1448.83,0.00025599,2]
[311361173,1705067520945,-899.04,0.00025599,2]
[311361174,1705067520954,-673.69,0.00025599,2]
[311361175,1705067520964,-699.58,0.00025599,2]
[311361176,1705067520973,-2683.93,0.00025599,2]
[311361177,1705067520984,-4923.06,0.00025599,2]
[311361178,1705067520994,-2940.73,0.00025599,2]
[311361179,1705067521004,-529.23,0.00025599,2]
[311361180,1705067521014,-660.73,0.00025599,2]
[311361181,1705067521024,-1814.82,0.00025599,2]
[311361182,1705067521034,-1795.65,0.00025599,2]
[311361183,1705067521044,-500.0,0.00025599,2]
[311361184,1705067521054,-500.0,0.00025599,2]
[311361185,1705067521064,-500.0,0.00025599,2]
[311361186,1705067521074,-788.12,0.00025599,2]
[311361187,1705067521084,-2878.51,0.00025599,2]
[311361188,1705067521094,-1029.85,0.00025599,2]
[311361189,1705067521103,-500.0,0.000256,2]
[311361190,1705067521112,-152.89,0.000256,2]
[311361191,1705067521122,-500.0,0.000256,2]
[311361192,1705067521131,-180.84261335,0.000256,2]
[311361193,1705067521141,-169.12,0.000256,2]
[311361194,1705067521151,-500.0,0.000256,2]
[311361195,1705067521161,-500.0,0.000256,2]
[311361196,1705067521172,-500.0,0.000256,2]
[311361197,1705067521184,-500.0,0.000256,2]
[311361198,1705067521195,-500.0,0.000256,2]
[311361199,1705067521204,-500.0,0.000256,2]
[311361200,1705067521214,-500.0,0.000256,2]
[311361201,1705067521223,-500.0,0.000256,2]
[311361202,1705067521234,-500.0,0.000256,2]
[311361203,1705067521243,-500.0,0.000256,2]
[311361204,1705067521253,-500.0,0.000256,2]
[311361205,1705067521264,-500.0,0.000256,2]
[311361206,1705067521274,-500.0,0.000256,2]
[311361207,1705067521285,-500.0,0.000256,2]
[311361208,1705067521295,-532.55,0.000256,2]
[311361209,1705067521305,-571.03,0.000256,2]
[311361210,1705067521316,-500.0,0.000256,2]
[311361211,1705067521326,-500.0,0.000256,2]
[311361212,1705067521335,-500.0,0.000256,2]
[311361213,1705067521346,-500.0,0.000256,2]
[311361214,1705067521356,-500.0,0.000256,2]
[311361215,1705067521366,-500.0,0.000256,2]
[311361216,1705067521377,-617.06,0.000256,2]
[311361217,1705067521387,-500.0,0.000256,2]
[311361218,1705067521397,-395.76,0.000256,2]
[311361219,1705067521407,-500.03,0.000256,2]
[311361220,1705067521416,-224.89238247,0.000256,2]
[311361221,1705067521426,-900.49,0.000256,2]
[311361222,1705067521436,-500.0,0.000256,2]
[311361223,1705067521446,-284.96,0.000256,2]
[311361224,1705067521455,-500.0,0.000256,2]
[311361225,1705067521465,-500.0,0.000256,2]
[311361226,1705067521475,-500.0,0.000256,2]
[311361227,1705067521485,-580.22,0.000256,2]
[311361228,1705067521496,-539.27819993,0.000256,2]
[311361229,1705067521506,-500.0,0.000256,2]
[311361230,1705067521516,-500.0,0.000256,2]
[311361231,1705067521526,-500.0,0.000256,2]
[311361232,1705067521536,-500.0,0.000256,2]
[311361233,1705067521546,-500.0,0.000256,2]
[311361234,1705067521555,-500.0,0.000256,2]
[311361235,1705067521566,-500.0,0.000256,2]
[311361236,1705067521576,-500.0,0.000256,2]
[311361237,1705067521587,-500.0,0.000256,2]
[311361238,1705067521597,-988.76,0.000256,2]
[311361239,1705067521607,-500.0,0.000256,2]
[311361240,1705067521616,-500.0,0.000256,2]
[311361241,1705067521626,-536.8,0.000256,2]
[311361242,1705067521636,-500.0,0.000256,2]
[311361243,1705067521645,-676.74,0.000256,2]
[311361244,1705067521655,-594.36,0.000256,2]
[311361245,1705067521665,-500.0,0.000256,2]
[311361246,1705067521675,-500.0,0.000256,2]
[311361247,1705067521685,-500.0,0.000256,2]
[311361248,1705067521694,-572.67,0.000256,2]
[311361249,1705067521704,-500.0,0.000256,2]
[311361250,1705067521713,-438.14,0.000256,2]
[311361251,1705067521724,-543.4,0.000256,2]
[311361252,1705067521733,-500.0,0.000256,2]
[311361253,1705067521743,-500.0,0.000256,2]
[311361254,1705067521753,-686.86,0.000256,2]
[311361255,1705067521763,-500.0,0.000256,2]
[311361256,1705067521773,-513.03,0.000256,2]
[311361257,1705067521783,-500.0,0.000256,2]
[311361258,1705067521792,-717.1,0.000256,2]
[311361259,1705067521802,-500.0,0.000256,2]
[311361260,1705067521811,-915.79,0.000256,2]